bitfinex/quotes_BTCUSD_20240803
["timestamp","ask_amount","ask_price","bid_price","bid_amount"]
[1722657446545,0.25039919,62001.0,62000.0,0.000913]
[1722657446750,0.25039919,62001.0,62000.0,0.12488]
[1722657446996,0.25039919,62001.0,62000.0,0.003913]
[1722657447125,0.37136419,62001.0,62000.0,0.003913]
[1722657447669,0.37136419,62001.0,62000.0,0.004913]
[1722657448048,0.37136419,62001.0,62000.0,1.004913]
[1722657448374,0.61329519,62001.0,62000.0,1.004913]
[1722657448572,0.74558684,62001.0,62000.0,1.004913]
[1722657448727,0.98751784,62001.0,62000.0,1.004913]
[1722657449335,0.74558684,62001.0,62000.0,1.004913]
[1722657449730,0.98751784,62001.0,62000.0,1.004913]
[1722657450373,0.93922619,62001.0,62000.0,1.004913]
[1722657450576,0.93922619,62001.0,62000.0,1.000913]
[1722657450778,0.94222619,62001.0,62000.0,1.000913]
[1722657451415,0.98253634,62001.0,62000.0,1.001913]
[1722657451787,0.93622619,62001.0,62000.0,1.001913]
[1722657452585,1.00846254,62001.0,62000.0,1.001913]
[1722657454008,0.76653154,62001.0,62000.0,1.001913]
[1722657454389,0.69406631,62001.0,62000.0,1.001913]
[1722657454797,0.76656528,62001.0,62000.0,1.001913]
[1722657455339,1.00849628,62001.0,62000.0,1.001913]
[1722657455476,1.03261762,62001.0,62000.0,1.001913]
[1722657455993,1.03222703,62001.0,62000.0,1.001913]
[1722657456473,0.88380672,62001.0,62000.0,1.001913]
[1722657457431,1.00458211,62001.0,62000.0,1.001913]
[1722657457852,0.88380672,62001.0,62000.0,1.001913]
[1722657458154,0.96700672,62001.0,62000.0,1.001913]
[1722657459019,1.20893772,62001.0,62000.0,1.001913]
[1722657459564,1.20893772,62001.0,62000.0,1.000913]
[1722657460235,1.20693772,62001.0,62000.0,1.000913]
[1722657460445,1.21693772,62001.0,62000.0,1.000913]
[1722657460584,1.22093772,62001.0,62000.0,1.000913]
[1722657460991,1.46886872,62001.0,62000.0,1.000913]
[1722657461195,1.61894696,62001.0,62000.0,1.000913]
[1722657461418,1.78699374,62001.0,62000.0,0.99221327]
[1722657461590,1.76222167,62001.0,62000.0,0.99221327]
[1722657461786,1.75722167,62001.0,62000.0,0.99121327]
[1722657462119,1.75722167,62001.0,62000.0,0.99221327]
[1722657462120,1.76222167,62001.0,62000.0,0.99221327]
[1722657462301,1.76222493,62001.0,62000.0,0.99221327]
[1722657462926,1.49154824,62001.0,62000.0,0.99221327]
[1722657463124,1.79513589,62001.0,62000.0,0.99221327]
[1722657463392,1.95825734,62001.0,62000.0,0.99321327]
[1722657463601,1.95825734,62001.0,61981.0,0.07875194]
[1722657463602,0.751012,61982.0,61981.0,0.07875194]
[1722657463806,1.25976965,61982.0,61981.0,0.07875194]
[1722657463973,1.45344108,61982.0,61981.0,0.07875194]
[1722657464344,1.52475731,61982.0,61981.0,0.07875194]
[1722657465546,1.48244108,61982.0,61981.0,0.07875194]
[1722657465780,1.58244108,61982.0,61981.0,0.07875194]
[1722657465997,1.59244108,61982.0,61981.0,0.07875194]
[1722657466699,1.58268952,61982.0,61981.0,0.07875194]
[1722657467115,0.605082,61975.0,61974.0,0.07875194]
[1722657467271,1.32678752,61975.0,61974.0,0.07875194]
[1722657467465,1.4378744,61975.0,61974.0,0.07875194]
[1722657467667,1.43785289,61975.0,61974.0,0.07875194]
[1722657467880,0.60515,61968.0,61960.0,0.21885194]
[1722657468057,0.97260924,61968.0,61960.0,0.21885194]
[1722657468254,0.97260924,61968.0,61960.0,0.15465194]
[1722657468485,1.21466924,61968.0,61960.0,0.15465194]
[1722657469495,1.22066924,61968.0,61967.0,0.07975194]
[1722657470298,0.97860924,61968.0,61967.0,0.07975194]
[1722657470499,0.98260924,61968.0,61967.0,0.07975194]
[1722657470694,1.22466924,61968.0,61967.0,0.07975194]
[1722657471190,1.22466924,61968.0,61967.0,0.21985194]
[1722657471191,0.31148924,61968.0,61967.0,0.21985194]
[1722657471365,0.004,61968.0,61967.0,0.58194794]
[1722657471615,0.009,61968.0,61967.0,1.06607594]
[1722657471786,0.009,61968.0,61967.0,0.82401194]
[1722657472086,0.004,61968.0,61967.0,0.82401194]
[1722657472463,0.009,61968.0,61967.0,0.82401194]
[1722657472676,0.005,61968.0,61967.0,0.82401194]
[1722657472888,0.005,61968.0,61967.0,0.82501194]
[1722657473098,0.00979216,61975.0,61971.0,0.121022]
[1722657473336,0.15745924,61974.0,61971.0,0.121022]
[1722657473543,0.15745924,61974.0,61972.0,0.121022]
[1722657474298,0.15745924,61974.0,61973.0,0.12102]
[1722657475158,0.15745924,61974.0,61971.0,0.36407]
[1722657475395,0.15745924,61974.0,61972.0,0.121022]
[1722657475934,0.15745924,61974.0,61971.0,0.121024]
[1722657476110,0.15745924,61974.0,61972.0,0.001]
[1722657476527,0.12102,61973.0,61972.0,0.001]
[1722657476738,0.15745924,61973.0,61972.0,0.001]
[1722657476936,0.15745924,61973.0,61967.0,0.46182894]
[1722657476937,0.15745924,61973.0,61970.0,0.121026]
[1722657477138,0.15745924,61972.0,61971.0,0.001]
[1722657477472,0.15745924,61972.0,61969.0,0.121026]
[1722657478342,0.15745924,61972.0,61970.0,0.121026]
[1722657479693,0.15745924,61972.0,61970.0,0.004]
[1722657479903,0.15745924,61972.0,61970.0,0.125026]
[1722657480263,0.15745924,61972.0,61970.0,0.004]
[1722657481133,0.144024,61971.0,61970.0,0.004]
[1722657481335,0.30148324,61971.0,61970.0,0.004]
[1722657481983,0.30148324,61971.0,61970.0,0.003]
[1722657482183,0.30148324,61971.0,61967.0,0.262045]
[1722657482404,0.15745924,61970.0,61967.0,0.262045]
[1722657483653,0.242056,61969.0,61967.0,0.003913]
[1722657483867,0.27848924,61968.0,61967.0,0.003913]
[1722657484307,0.54354924,61968.0,61967.0,0.003913]
[1722657484960,0.54354924,61968.0,61967.0,0.004913]
[1722657485156,0.54354924,61968.0,61967.0,0.001913]
[1722657485566,0.54354924,61968.0,61967.0,0.003913]
[1722657485965,0.54354924,61968.0,61967.0,0.000913]
[1722657486376,0.78560924,61968.0,61967.0,0.000913]
[1722657486551,0.54354924,61968.0,61967.0,0.000913]
[1722657486772,0.78560924,61968.0,61967.0,0.000913]
[1722657486978,0.54354924,61968.0,61967.0,0.000913]
[1722657487174,0.54554924,61968.0,61967.0,0.000913]
[1722657487781,0.54454924,61968.0,61967.0,0.000913]
[1722657488006,0.54654924,61968.0,61967.0,0.000913]
[1722657488361,0.30448924,61968.0,61967.0,0.000913]
[1722657488743,0.54654924,61968.0,61967.0,0.000913]
[1722657489309,0.89868386,61968.0,61967.0,0.000913]
[1722657489509,0.89968386,61968.0,61967.0,0.000913]
[1722657490108,0.78860924,61968.0,61967.0,0.000913]
[1722657490307,0.89971763,61968.0,61967.0,0.000913]
[1722657490509,0.90939394,61968.0,61967.0,0.000913]
[1722657491430,0.9085374,61968.0,61967.0,0.000913]
[1722657491651,0.90852558,61968.0,61967.0,0.000913]
[1722657491839,0.90839265,61968.0,61967.0,0.000913]
[1722657492203,0.66633265,61968.0,61967.0,0.000913]
[1722657492776,0.42512919,61968.0,61967.0,0.000913]
[1722657493639,0.66518919,61968.0,61967.0,0.000913]
[1722657493887,0.90724919,61968.0,61967.0,0.000913]
[1722657494003,0.90948283,61968.0,61967.0,0.000913]
[1722657494451,0.90748283,61968.0,61967.0,0.000913]
[1722657494874,1.29284283,61968.0,61967.0,0.000913]
[1722657495093,1.29284283,61968.0,61967.0,0.001913]
[1722657495094,1.39284283,61968.0,61967.0,0.001913]
[1722657495499,1.39484283,61968.0,61967.0,0.000913]
[1722657495695,1.39584283,61968.0,61967.0,0.000913]
[1722657496080,1.39484283,61968.0,61967.0,0.000913]
[1722657496277,1.39984283,61968.0,61967.0,0.001913]
[1722657496488,1.39984283,61968.0,61967.0,0.000913]
[1722657496714,1.39784283,61968.0,61967.0,0.000913]
[1722657496915,1.40984283,61968.0,61967.0,0.002913]
[1722657497582,1.40284283,61968.0,61967.0,0.001913]
[1722657497918,1.41284283,61968.0,61967.0,0.002913]
[1722657498253,1.40284283,61968.0,61967.0,0.001913]
[1722657498451,1.40984283,61968.0,61967.0,0.001913]
[1722657498654,1.39984283,61968.0,61967.0,0.001913]
[1722657499139,1.39284283,61968.0,61967.0,0.000913]
[1722657499568,1.39984283,61968.0,61967.0,0.001913]
[1722657499791,1.39284283,61968.0,61967.0,0.000913]
[1722657500165,1.39284283,61968.0,61967.0,0.001913]
[1722657500384,1.4480453,61968.0,61967.0,0.001913]
[1722657500801,1.4580453,61968.0,61967.0,0.002913]
[1722657501010,1.68273206,61968.0,61967.0,0.002913]
[1722657501371,1.67273206,61968.0,61967.0,0.001913]
[1722657501632,1.66574179,61968.0,61967.0,0.000913]
[1722657501865,1.80237002,61968.0,61967.0,0.002913]
[1722657502044,1.86874179,61968.0,61967.0,0.002]
[1722657502258,1.86874179,61968.0,61953.0,0.07875194]
[1722657502259,1.8912413,61968.0,61953.0,0.07875194]
[1722657502473,0.605287,61954.0,61953.0,0.07875194]
[1722657502673,1.13989748,61954.0,61953.0,0.07875194]
[1722657503462,1.13989748,61954.0,61953.0,0.07975194]
[1722657504102,1.20469748,61954.0,61953.0,0.001]
[1722657504337,1.20469748,61954.0,61953.0,0.002]
[1722657504338,1.30469748,61954.0,61953.0,0.002]
[1722657504708,1.30469748,61954.0,61945.0,0.07875194]
[1722657504709,0.605365,61946.0,61945.0,0.07875194]
[1722657504872,0.89786048,61946.0,61945.0,0.07875194]
[1722657505067,0.605412,61941.0,61940.0,0.000913]
[1722657505290,0.54370624,61941.0,61940.0,0.000913]
[1722657505819,0.78587124,61941.0,61940.0,0.000913]
[1722657505992,0.89339916,61941.0,61940.0,0.000913]
[1722657506172,1.13556416,61941.0,61940.0,0.000913]
[1722657506523,1.13556416,61941.0,61940.0,0.001913]
[1722657506705,1.13556416,61941.0,61940.0,0.000913]
[1722657507497,1.13556416,61941.0,61940.0,0.001913]
[1722657507498,1.24256416,61941.0,61940.0,0.001913]
[1722657508067,1.24556416,61941.0,61940.0,0.001913]
[1722657508246,1.24656416,61941.0,61940.0,0.001913]
[1722657509224,0.53006916,61941.0,61940.0,0.002913]
[1722657509430,0.78182805,61941.0,61940.0,0.001913]
[1722657509675,1.02399305,61941.0,61940.0,0.001913]
[1722657509876,1.02299305,61941.0,61940.0,0.001913]
[1722657510174,1.26515805,61941.0,61940.0,0.001913]
[1722657510947,1.24515805,61941.0,61940.0,0.000913]
[1722657511151,1.24515805,61941.0,61940.0,0.001913]
[1722657511442,1.14777073,61941.0,61940.0,0.001913]
[1722657511613,1.25602645,61941.0,61940.0,0.000913]
[1722657511815,1.16877073,61941.0,61940.0,0.002913]
[1722657512020,1.27702716,61941.0,61940.0,0.002913]
[1722657512653,1.24602716,61941.0,61940.0,0.000913]
[1722657512860,1.26702716,61941.0,61940.0,0.002913]
[1722657514890,0.67444073,61941.0,61940.0,0.002913]
[1722657515486,0.91660573,61941.0,61940.0,0.002913]
[1722657515821,0.90560573,61941.0,61940.0,0.001913]
[1722657516217,0.89560573,61941.0,61940.0,0.000913]
[1722657516739,0.66344073,61941.0,61940.0,0.001913]
[1722657517726,0.67144073,61941.0,61940.0,0.002913]
[1722657517927,0.91360573,61941.0,61940.0,0.002913]
[1722657518529,0.67144073,61941.0,61940.0,0.002913]
[1722657519715,0.78103162,61941.0,61940.0,0.002913]
[1722657519911,0.67144073,61941.0,61940.0,0.002913]
[1722657520313,0.30819373,61941.0,61940.0,0.002913]
[1722657520513,0.30819373,61941.0,61940.0,0.079913]
[1722657520514,0.42927573,61941.0,61940.0,0.079913]
[1722657520717,0.67144073,61941.0,61940.0,0.079913]
[1722657520966,0.78099134,61941.0,61940.0,0.002913]
[1722657522186,0.78082952,61941.0,61940.0,0.002913]
[1722657522785,1.02299452,61941.0,61940.0,0.002913]
[1722657523941,1.26515952,61941.0,61940.0,0.002913]
[1722657525632,1.33529939,61941.0,61940.0,0.002913]
[1722657525816,1.33529939,61941.0,61939.0,0.000913]
[1722657525817,0.635422,61940.0,61939.0,0.000913]
[1722657526044,0.877605,61939.0,61938.0,0.009988]
[1722657526210,1.5090659,61939.0,61938.0,0.009988]
[1722657526409,1.5697659,61939.0,61938.0,0.009988]
[1722657526825,1.61794737,61939.0,61938.0,0.009988]
[1722657527331,1.5697659,61939.0,61938.0,0.009988]
[1722657527532,1.09985,61935.0,61924.0,0.07875194]
[1722657527733,1.6961379,61935.0,61924.0,0.07875194]
[1722657527936,1.8333379,61935.0,61918.0,0.0646]
[1722657528118,1.8333379,61935.0,61917.0,0.077]
[1722657528119,0.60562,61920.0,61917.0,0.077]
[1722657528335,0.89601316,61920.0,61917.0,0.077]
[1722657528555,0.89601316,61920.0,61918.0,0.07875194]
[1722657529091,1.13826116,61920.0,61918.0,0.07875194]
[1722657529291,1.2382634,61920.0,61913.0,0.077]
[1722657530119,1.2382634,61920.0,61912.0,0.009988]
[1722657530535,1.2402634,61920.0,61912.0,0.009988]
[1722657530813,1.2412634,61920.0,61912.0,0.009988]
[1722657531020,1.2382634,61920.0,61912.0,0.009988]
[1722657531223,1.2492634,61920.0,61919.0,0.010988]
[1722657531421,1.0160154,61920.0,61919.0,0.010988]
[1722657531837,1.0050154,61920.0,61919.0,0.009988]
[1722657532088,1.02542037,61920.0,61919.0,0.010988]
[1722657532784,1.02631745,61920.0,61919.0,0.010988]
[1722657533264,1.02631756,61920.0,61919.0,0.010988]
[1722657534129,1.08661756,61920.0,61919.0,0.010988]
[1722657534483,1.32884434,61920.0,61919.0,0.010988]
[1722657535432,1.02629634,61920.0,61919.0,0.010988]
[1722657537279,0.78404834,61920.0,61919.0,0.154388]
[1722657538021,0.29767634,61920.0,61919.0,0.154388]
[1722657538177,0.30798821,61920.0,61919.0,0.154388]
[1722657538385,0.41912265,61920.0,61919.0,0.154388]
[1722657538590,0.66137065,61920.0,61919.0,0.154388]
[1722657539320,0.90361865,61920.0,61919.0,0.010988]
[1722657539647,0.92661865,61920.0,61919.0,0.010988]
[1722657540342,0.91761865,61920.0,61919.0,0.010988]
[1722657540544,0.91961865,61920.0,61919.0,0.010988]
[1722657540899,0.91761865,61920.0,61919.0,0.010988]
[1722657541317,0.92161865,61920.0,61919.0,0.010988]
[1722657541520,0.91061865,61920.0,61919.0,0.009988]
[1722657541887,0.91661865,61920.0,61919.0,0.009988]
[1722657542138,0.91061865,61920.0,61919.0,0.009988]
[1722657542344,0.90616756,61920.0,61919.0,0.009988]
[1722657542552,0.66991956,61920.0,61919.0,0.010988]
[1722657542750,0.66996031,61920.0,61919.0,0.010988]
[1722657542934,0.55923621,61920.0,61919.0,0.010988]
[1722657543181,0.66396032,61920.0,61919.0,0.009988]
[1722657543395,0.67196032,61920.0,61919.0,0.010988]
[1722657543609,0.67596032,61920.0,61919.0,0.010988]
[1722657544036,0.92120832,61920.0,61919.0,0.010988]
[1722657544431,0.91420832,61920.0,61919.0,0.010988]
[1722657544635,0.91420832,61920.0,61919.0,0.009988]
[1722657544636,0.90920832,61920.0,61919.0,0.009988]
[1722657545136,0.91420832,61920.0,61919.0,0.010988]
[1722657545492,0.66696032,61920.0,61919.0,0.009988]
[1722657545700,0.67196032,61920.0,61919.0,0.010988]
[1722657548123,0.42971232,61920.0,61919.0,0.010988]
[1722657548736,0.30858832,61920.0,61919.0,0.010988]
[1722657549218,0.30836848,61920.0,61919.0,0.010988]
[1722657549622,0.30836848,61920.0,61919.0,0.01256239]
[1722657550276,0.42949248,61920.0,61919.0,0.01256239]
[1722657550820,0.42949248,61920.0,61919.0,0.010988]
[1722657551232,0.30836848,61920.0,61919.0,0.01256239]
[1722657551529,0.42949248,61920.0,61919.0,0.01256239]
[1722657551957,0.80348421,61920.0,61919.0,0.010988]
[1722657552230,0.9137611,61920.0,61919.0,0.010988]
[1722657552846,0.6715131,61920.0,61919.0,0.010988]
[1722657553038,0.67135166,61920.0,61919.0,0.010988]
[1722657553392,0.30805591,61920.0,61919.0,0.010988]
[1722657554522,0.67132604,61920.0,61919.0,0.010988]
[1722657554725,0.42907804,61920.0,61919.0,0.010988]
[1722657556409,0.30796309,61920.0,61919.0,0.010988]
[1722657557510,0.30796309,61920.0,61919.0,0.01256239]
[1722657557711,0.30796309,61920.0,61919.0,0.010988]
[1722657557935,0.30796309,61920.0,61919.0,0.01256239]
[1722657558048,0.30796309,61920.0,61919.0,0.010988]
[1722657558049,0.42908709,61920.0,61919.0,0.010988]
[1722657558472,0.35621521,61920.0,61919.0,0.010988]
[1722657559508,0.30796309,61920.0,61919.0,0.010988]
[1722657559737,0.42908709,61920.0,61919.0,0.010988]
[1722657560255,0.30796309,61920.0,61919.0,0.010988]
[1722657560485,0.38043478,61920.0,61919.0,0.010988]
[1722657561744,0.56305878,61920.0,61919.0,0.010988]
[1722657561948,0.38043478,61920.0,61919.0,0.010988]
[1722657562503,0.30796309,61920.0,61919.0,0.010988]
[1722657563288,0.38046852,61920.0,61919.0,0.010988]
[1722657563495,0.30796309,61920.0,61919.0,0.010988]
[1722657563697,0.42970128,61920.0,61919.0,0.010988]
[1722657563919,0.76857821,61920.0,61919.0,0.010988]
[1722657564323,0.91419728,61920.0,61919.0,0.010988]
[1722657564749,1.13498344,61920.0,61919.0,0.010988]
[1722657565346,1.01419728,61920.0,61919.0,0.010988]
[1722657565647,1.01119728,61920.0,61919.0,0.010988]
[1722657566049,1.01819728,61920.0,61919.0,0.010988]
[1722657566569,1.01319728,61920.0,61919.0,0.009988]
[1722657566915,1.09959728,61920.0,61919.0,0.009988]
[1722657567176,1.09945756,61920.0,61919.0,0.009988]
[1722657569736,1.10945756,61920.0,61919.0,0.009988]
[1722657569994,1.49696054,61920.0,61919.0,0.009988]
[1722657570350,1.35170556,61920.0,61919.0,0.009988]
[1722657570873,1.37151134,61920.0,61919.0,0.009988]
[1722657571094,1.35151134,61920.0,61919.0,0.009988]
[1722657571855,1.37151134,61920.0,61919.0,0.009988]
[1722657572391,1.35151134,61920.0,61919.0,0.009988]
[1722657572945,0.29224334,61920.0,61919.0,0.676615]
[1722657573158,0.28283837,61920.0,61919.0,0.753615]
[1722657573573,0.35555469,61920.0,61919.0,0.753615]
[1722657573701,0.27583837,61920.0,61919.0,0.753615]
[1722657573920,0.34055469,61920.0,61919.0,0.753615]
[1722657574125,0.16526502,61920.0,61919.0,0.753615]
[1722657574348,0.2771481,61920.0,61919.0,0.753615]
[1722657574557,0.3498515,61920.0,61919.0,0.753615]
[1722657574878,0.34198501,61920.0,61919.0,0.753615]
[1722657575029,0.34898501,61920.0,61919.0,0.753615]
[1722657575440,0.34897404,61920.0,61919.0,0.753615]
[1722657575635,0.27628161,61920.0,61919.0,0.995866]
[1722657575817,0.16426502,61920.0,61919.0,0.995866]
[1722657576033,0.1212187,61928.0,61923.0,0.363354]
[1722657576034,0.04846074,61924.0,61923.0,0.363354]
[1722657576248,0.15745924,61924.0,61923.0,0.74359]
[1722657576455,0.15745924,61924.0,61923.0,0.985826]
[1722657576660,0.07269243,61932.0,61919.0,0.013988]
[1722657576661,0.04846074,61932.0,61931.0,0.363307]
[1722657576856,0.20591998,61932.0,61931.0,0.682512]
[1722657577102,0.15745924,61932.0,61931.0,0.682512]
[1722657577298,0.15745924,61932.0,61931.0,0.924717]
[1722657577526,0.15745924,61932.0,61931.0,0.985717]
[1722657577748,0.00083,61934.0,61933.0,0.847689]
[1722657577881,0.15828924,61934.0,61933.0,0.985689]
[1722657579171,0.15828924,61934.0,61933.0,0.988689]
[1722657579316,0.15828924,61934.0,61933.0,1.230886]
[1722657579317,0.00083,61934.0,61933.0,1.230886]
[1722657580163,0.00083,61934.0,61933.0,1.231886]
[1722657580681,0.00083,61934.0,61933.0,1.230886]
[1722657580875,0.00083,61934.0,61933.0,0.988689]
[1722657581683,0.00183,61934.0,61933.0,0.993689]
[1722657581833,0.00183,61934.0,61933.0,1.232886]
[1722657582033,0.00283,61934.0,61933.0,1.000689]
[1722657582389,0.00283,61934.0,61933.0,1.242886]
[1722657582799,0.00283,61934.0,61933.0,1.000689]
[1722657583547,0.00283,61934.0,61933.0,1.242886]
[1722657583878,0.00283,61934.0,61933.0,1.000689]
[1722657584243,0.00283,61934.0,61933.0,1.242886]
[1722657584444,0.00283,61934.0,61933.0,1.252886]
[1722657584743,0.00283,61934.0,61933.0,1.242886]
[1722657585370,0.00183,61934.0,61933.0,1.232886]
[1722657585587,0.00183,61934.0,61933.0,1.242886]
[1722657585810,0.00183,61934.0,61933.0,1.237886]
[1722657586006,0.00183,61934.0,61933.0,0.985689]
[1722657586232,0.00183,61934.0,61933.0,1.008689]
[1722657586233,0.00383,61934.0,61933.0,1.008689]
[1722657586650,0.00283,61934.0,61933.0,0.995689]
[1722657586998,0.00383,61934.0,61933.0,1.009689]
[1722657592968,0.00283,61934.0,61933.0,0.995689]
[1722657593102,0.00183,61934.0,61933.0,0.999689]
[1722657594518,0.00183,61934.0,61933.0,1.013689]
[1722657594519,0.00283,61934.0,61933.0,1.013689]
[1722657598796,0.00283,61934.0,61933.0,1.255886]
[1722657599545,0.00283,61934.0,61933.0,1.013689]
[1722657601335,0.00283,61934.0,61933.0,0.529295]
[1722657601566,0.22178924,61934.0,61933.0,0.028]
[1722657601992,0.24478924,61934.0,61933.0,0.028]
[1722657602210,0.24378924,61934.0,61933.0,0.014]
[1722657602409,0.24278924,61934.0,61926.0,0.24222]
[1722657602588,0.24278924,61934.0,61920.0,0.78564566]
[1722657602589,0.30155724,61933.0,61920.0,0.54340066]
[1722657602801,0.18045924,61933.0,61928.0,0.121107]
[1722657603013,0.121102,61931.0,61929.0,0.00108077]
[1722657603258,0.18045924,61930.0,61926.0,0.121111]
[1722657603381,0.18045924,61930.0,61925.0,0.121113]
[1722657603583,0.18045924,61930.0,61926.0,0.07875194]
[1722657603978,0.18045924,61930.0,61929.0,0.121106]
[1722657604180,0.18045924,61930.0,61929.0,0.60553]
[1722657604311,0.18045924,61930.0,61929.0,0.121106]
[1722657604507,0.18045924,61930.0,61929.0,0.363318]
[1722657604707,0.18045924,61930.0,61929.0,0.121106]
[1722657604915,0.18045924,61930.0,61929.0,0.363318]
[1722657605520,0.18045924,61930.0,61929.0,0.364318]
[1722657605720,0.18045924,61930.0,61929.0,0.60653]
[1722657605948,0.18045924,61930.0,61929.0,0.60553]
[1722657606294,0.00083,61934.0,61933.0,0.748892]
[1722657606515,0.00083,61934.0,61929.0,0.002]
[1722657606516,0.15828924,61934.0,61929.0,0.002]
[1722657606714,0.15745924,61933.0,61932.0,0.1211]
[1722657606946,0.15745924,61933.0,61932.0,0.363301]
[1722657607388,0.26870226,61933.0,61932.0,0.1211]
[1722657607847,0.18045924,61933.0,61932.0,0.1211]
[1722657608223,0.18045924,61933.0,61931.0,0.121102]
[1722657608423,0.18045924,61933.0,61930.0,0.07875194]
[1722657608424,0.023,61932.0,61930.0,0.19985494]
[1722657608632,0.15745924,61931.0,61930.0,0.19985494]
[1722657608852,0.18045924,61931.0,61930.0,0.19985494]
[1722657609066,0.18045924,61931.0,61930.0,0.07875194]
[1722657609619,0.30156124,61931.0,61930.0,0.002]
[1722657609822,0.32315924,61931.0,61930.0,0.003]
[1722657610023,0.55530934,61931.0,61930.0,0.001]
[1722657610233,0.68646624,61931.0,61930.0,0.001]
[1722657610994,0.32315924,61931.0,61930.0,0.001]
[1722657611152,0.32315924,61931.0,61930.0,0.363312]
[1722657611153,0.15745924,61931.0,61930.0,0.363312]
[1722657611368,0.00083,61934.0,61933.0,0.363295]
[1722657611522,0.00083,61934.0,61933.0,0.991089]
[1722657613325,0.00183,61934.0,61933.0,0.999089]
[1722657613720,0.00183,61934.0,61933.0,1.005089]
[1722657613721,0.00283,61934.0,61933.0,1.005089]
[1722657614857,0.00183,61934.0,61933.0,0.997089]
[1722657615033,0.00083,61934.0,61933.0,0.991089]
[1722657615232,0.00283,61934.0,61933.0,1.007089]
[1722657615455,0.00183,61934.0,61933.0,0.998089]
[1722657615829,0.00183,61934.0,61933.0,1.005089]
[1722657616061,0.00283,61934.0,61933.0,1.017089]
[1722657616662,0.00283,61934.0,61933.0,0.774892]
[1722657617186,0.00283,61934.0,61933.0,0.708392]
[1722657617567,0.00183,61934.0,61933.0,0.694392]
[1722657617895,0.00183,61934.0,61933.0,0.706392]
[1722657618095,0.00083,61934.0,61933.0,0.694392]
[1722657618326,0.00083,61934.0,61933.0,0.704392]
[1722657618474,0.00083,61934.0,61933.0,0.946589]
[1722657618682,0.00083,61934.0,61933.0,0.704392]
[1722657618837,0.00083,61934.0,61933.0,0.946589]
[1722657619041,0.00083,61934.0,61933.0,0.704392]
[1722657622598,0.00083,61934.0,61933.0,0.946589]
[1722657622804,0.00083,61934.0,61933.0,0.704392]
[1722657623009,0.00029718,61934.0,61933.0,0.704392]
[1722657626160,0.00029718,61934.0,61933.0,0.946589]
[1722657626368,0.00029718,61934.0,61933.0,0.704392]
[1722657626539,0.00029718,61934.0,61933.0,0.946589]
[1722657626959,0.00029718,61934.0,61933.0,1.012789]
[1722657628510,0.00029718,61934.0,61933.0,1.254986]
[1722657628855,0.00029718,61934.0,61933.0,1.497183]
[1722657629057,0.00029718,61934.0,61933.0,1.264986]
[1722657629256,0.00029718,61934.0,61933.0,1.366986]
[1722657629683,0.00029718,61934.0,61933.0,1.364986]
[1722657630125,0.00029718,61934.0,61933.0,1.352986]
[1722657630283,0.00029718,61934.0,61933.0,1.342986]
[1722657630493,0.00029718,61934.0,61933.0,1.356986]
[1722657631071,0.00029718,61934.0,61933.0,1.342986]
[1722657631425,0.00029718,61934.0,61933.0,1.356986]
[1722657631644,0.00029718,61934.0,61933.0,1.370986]
[1722657631850,0.00029718,61934.0,61933.0,1.356986]
[1722657632254,0.00029718,61934.0,61933.0,1.372986]
[1722657632627,0.00029718,61934.0,61933.0,1.615183]
[1722657632835,0.00029718,61934.0,61933.0,1.635183]
[1722657633272,0.00029718,61934.0,61933.0,1.79264224]
[1722657633479,1.8e-07,61934.0,61933.0,1.79264224]
[1722657633650,1.8e-07,61934.0,61933.0,1.88594987]
[1722657634341,0.0804,61964.0,61957.0,0.0762]
[1722657634551,0.00083,61968.0,61964.0,0.363114]
[1722657634552,0.0615,61965.0,61964.0,0.363114]
[1722657634768,0.0615,61965.0,61964.0,0.60519]
[1722657635838,0.24195924,61965.0,61964.0,0.60519]
[1722657636244,0.24395924,61965.0,61964.0,0.60519]
[1722657636631,0.24195924,61965.0,61964.0,0.60519]
[1722657637375,0.18045924,61965.0,61964.0,0.60519]
[1722657637915,0.18045924,61965.0,61964.0,0.60719]
[1722657638620,0.15745924,61965.0,61964.0,0.60719]
[1722657638826,0.15745924,61965.0,61964.0,0.849266]
[1722657639024,0.00083,61968.0,61967.0,0.60516]
[1722657639230,0.15828924,61968.0,61967.0,0.847224]
[1722657639697,0.00083,61968.0,61967.0,0.847224]
[1722657640719,0.00083,61968.0,61967.0,0.849224]
[1722657641029,0.00083,61968.0,61967.0,0.847224]
[1722657641351,0.00083,61968.0,61967.0,0.853224]
[1722657641478,0.00083,61968.0,61967.0,0.856224]
[1722657641926,0.00083,61968.0,61967.0,1.098288]
[1722657642084,0.00083,61968.0,61967.0,0.856224]
[1722657644608,0.00083,61968.0,61967.0,0.956224]
[1722657645539,0.00083,61968.0,61967.0,1.02897594]
[1722657645713,0.00083,61968.0,61967.0,1.27703994]
[1722657646341,0.00083,61968.0,61967.0,1.37323994]
[1722657646540,0.00083,61968.0,61967.0,1.42403994]
[1722657646748,0.00083,61968.0,61967.0,1.42703994]
[1722657647263,0.00083,61968.0,61967.0,1.53603994]
[1722657647609,0.00083,61968.0,61967.0,1.54803994]
[1722657648027,0.00083,61968.0,61967.0,1.53603994]
[1722657648473,0.00083,61968.0,61967.0,1.54803994]
[1722657648671,0.00083,61968.0,61967.0,1.52903994]
[1722657648876,0.00083,61968.0,61967.0,1.52003994]
[1722657649134,0.00083,61968.0,61967.0,0.861224]
[1722657649347,0.30018924,61968.0,61967.0,0.014]
[1722657649600,0.30018924,61968.0,61967.0,0.028]
[1722657649790,0.30018924,61968.0,61961.0,0.242087]
[1722657649791,0.121034,61966.0,61961.0,0.121043]
[1722657649900,0.32318924,61968.0,61950.0,0.2632]
[1722657649901,0.21895924,61965.0,61950.0,0.2632]
[1722657650101,0.023,61964.0,61954.0,0.242113]
[1722657650415,0.15745924,61963.0,61962.0,0.12104]
[1722657650603,0.15745924,61963.0,61955.0,0.242108]
[1722657650805,0.15745924,61963.0,61961.0,0.121043]
[1722657651007,0.15745924,61963.0,61960.0,0.121045]
[1722657651214,0.0804,61961.0,61960.0,0.121045]
[1722657651437,0.23785924,61961.0,61955.0,0.242107]
[1722657651644,0.23785924,61961.0,61950.0,0.187]